Workbook

Sheet SM-sarja
B1: Hannu Manninen | E1: 13.3.1950 - xx.xx.2008
B2: MESTARUUSSARJA | E2: Runkosarja | I2: Kärkilyönnit (KL), pesänvälit | P2: Runkosarja TOP-30 | U2: Ylempi loppusarja | AB2: Ylempi loppusarja TOP-10 | AG2: Play off, voitot, voittoprosentti | AL2: Arvo-ottelut | AO2: Mitalit
B3: Vuosi | C3: Sija | D3: Seura | E3: OTT | F3: KUN | G3: LÖI | H3: TOI | I3: KL | J3: 0 > 1 | K3: 1 > 2 | L3: 2 > 3 | M3: 3 > k | N3: KL-% | P3: LÖI | Q3: TOI | R3: L+T | S3: KL | U3: OTT | V3: KUN | W3: LÖI | X3: TOI | Y3: KL | Z3: KL-% | AB3: LÖI | AC3: TOI | AD3: L+T | AE3: KL | AG3: Puolivälierät | AH3: Välierät | AI3: Pronssi | AJ3: Finaalit | AL3: IL | AM3: LL | AN3: Cup | AO3: K | AP3: H | AQ3: P
B4: 1975 | C4: 3. | D4: JuPa | F4: suomensarja
B5: 1976 | C5: 3. | D5: JuPa | F5: suomensarja
B6: 1977 | C6: 10. | D6: JuPa | F6: suomensarja
B7: 1978
B8: 1979
B9: 1980
B10: 1981 | C10: 5. | D10: PKP | F10: ykkössarja
B11: 1982 | C11: 9. | D11: PKP | F11: ykkössarja
B12: 1983 | C12: 8. | D12: SiiPo | E12: 22 | F12: 3 | G12: 10 | H12: 15 | I12: 111 | J12: 36 | K12: 45 | L12: 17 | M12: 13 | N12: 64.2 % | S12: 25. | U12: 6 | V12: 0 | W12: 0 | X12: 8 | Y12: 21 | Z12: 50.0 %
B13: 1984 | C13: 10. | D13: SiiPo | E13: 21 | F13: 1 | G13: 11 | H13: 19 | I13: 125 | J13: 33 | K13: 43 | L13: 37 | M13: 12 | N13: 67.2 % | Q13: 27. | S13: 13. | U13: 3 | V13: 0 | W13: 1 | X13: 2 | Y13: 26 | Z13: 81.3 % | AM13: 1
B14: 1985 | C14: 1. | D14: SiiPo | F14: ykkössarja | AN14: 1
B15: 1986 | C15: 2. | D15: SiiPo | E15: 22 | F15: 2 | G15: 12 | H15: 25 | I15: 109 | J15: 33 | K15: 38 | L15: 24 | M15: 14 | N15: 58.9 % | Q15: 16. | R15: 28. | S15: 28. | AC15: 4. | AE15: 10. | AG15: Loppusarja 2. | AJ15: 0-2 IPV | AP15: 1
B16: 1987 | C16: 11. | D16: JuPa | F16: ykkössarja
B17: 1988 | C17: 1. | D17: JuPa | F17: suomensarja
B18: 1989 | C18: 8. | D18: JuPa | F18: ykkössarja
B19: Yhteensä | E19: =SUM(E12:E15) -> 65 | F19: 6 | G19: 33 | H19: 59 | I19: 345 | J19: 102 | K19: 126 | L19: 78 | M19: 39 | N19: 63.4 % | P19: 0-0-0 | Q19: 0-0-0 | R19: 0-0-0 | S19: 0-0-0 | U19: 9 | V19: 0 | W19: 1 | X19: 10 | Y19: 47 | Z19: 63.5 % | AB19: 0-0-0 | AC19: 0-0-0 | AD19: 0-0-0 | AE19: 0-0-0 | AG19: 0/0 | AH19: 0/0 | AI19: 0/0 | AJ19: 0/1 | AL19: 0 | AM19: 1 | AN19: 1 | AO19: 0 | AP19: 1 | AQ19: 0
AG20: 0.0 % | AH20: 0.0 % | AI20: 0.0 % | AJ20: 0.0 %
B21: Pesispörssi | D21: 281.7
B23: URA SM-SARJASSA | E23: OTT | F23: KUN | G23: LÖI | H23: TOI | I23: KL | K23: ka/L | L23: ka/T | M23: ka/KL | N23: KL-% | P23: ENSIMMÄISET RUNKOSARJASSA | AG23: ENSIMMÄISET PUDOTUSPELEISSÄ | AL23: YLEISÖ
B24: Runkosarja | E24: 65 | F24: 6 | G24: 33 | H24: 59 | I24: 345 | K24: 0.60 | L24: 0.91 | M24: 5.31 | N24: 63.4 % | P24: Ottelu | R24: 01.05. 1983 SiiPo - KaMa 4-5 | Y24: 1. ottelu | AB24: 33 v 1 kk 18 pv | AG24: Ottelu | AH24: 1. 13.08. 1986 SiiPo - SMJ 5-4 | AL24: 1742 | AN24: 36 v 5 kk 0 pv
B25: Ylempi loppusarja | E25: 7 | F25: 0 | G25: 2 | H25: 8 | I25: 30 | K25: 0.29 | L25: 1.14 | M25: 4.29 | N25: 63.8 % | P25: Lyöty | R25: 22.05. 1983 Tahko - SiiPo 6-10 | Y25: 5. ottelu | AB25: 33 v 2 kk 9 pv | AG25: Lyöty | AH25: 4. 30.08. 1986 SiiPo - KiU 10-7 | AL25: 1804 | AN25: 36 v 5 kk 17 pv
B26: Alempi loppusarja | E26: 9 | F26: 0 | G26: 1 | H26: 10 | I26: 47 | K26: 0.11 | L26: 1.11 | M26: 5.22 | N26: 63.5 % | P26: Tuotu | R26: 01.05. 1983 SiiPo - KaMa 4-5 | Y26: 1. ottelu | AB26: 33 v 1 kk 18 pv | AG26: Tuotu | AH26: 1. 13.08. 1986 SiiPo - SMJ 5-4 | AL26: 1742 | AN26: 36 v 5 kk 0 pv
B27: KAIKKI | E27: 81 | F27: 6 | G27: 36 | H27: 77 | I27: 422 | K27: 0.52 | L27: 0.95 | M27: 5.21 | N27: 63.5 % | O27: 722 | P27: Kunnari | R27: 15.06. 1983 KiU - SiiPo 17-8 | Y27: 11. ottelu | AB27: 33 v 3 kk 2 pv | AG27: Kunnari
O28: 815
B29: Seurat | D29: PKP = Puurtilan Kisa-Pojat (1948)
D30: SiiPo = Siilinjärven Ponnistus (1907)
D31: JuPa = Juvan Pallo (1950)

Sheet MYP, MSS
B1: Hannu Manninen | E1: 13.3.1950 - xx.xx.2008
B2: YKKÖSPESIS | E2: Runkosarja | L2: Runkosarja TOP-10 | Q2: Jatkosarjat | X2: SUOMENSARJA | AA2: Runkosarja | AH2: Runkosarja TOP-10 | AM2: Jatkosarjat
B3: Vuosi | C3: Sija | D3: Seura | E3: OTT | F3: KUN | G3: LÖI | H3: TOI | I3: KL | J3: KL-% | L3: LÖI | M3: TOI | N3: L+T | O3: KL | Q3: OTT | R3: KUN | S3: LÖI | T3: TOI | U3: KL | V3: KL-% | X3: Vuosi | Y3: Sija | Z3: Seura | AA3: OTT | AB3: KUN | AC3: LÖI | AD3: TOI | AE3: KL | AF3: KL-% | AH3: LÖI | AI3: TOI | AJ3: L+T | AK3: KL | AM3: OTT | AN3: KUN | AO3: LÖI | AP3: TOI | AQ3: KL | AR3: KL-%
X4: 1975 | Y4: 3. | Z4: JuPa | AA4: 18 | AD4: 27 | AI4: 10.
B5: 1981 | C5: 5. | D5: PKP | E5: 10 | F5: 0 | G5: 11 | H5: 14 | Q5: 10 | R5: 1 | S5: 3 | T5: 9
B6: 1982 | C6: 9. | D6: PKP | E6: 10 | F6: 0 | G6: 4 | H6: 15 | M6: 1. | N6: 5. | Q6: 9 | R6: 2 | S6: 9 | T6: 13
B7: 1985 | C7: 1. | D7: SiiPo | E7: 21 | F7: 0 | G7: 6 | H7: 27
B8: 1987 | C8: 11. | D8: JuPa | E8: 22 | F8: 1 | G8: 13 | H8: 17
X9: 1988 | Y9: 1. | Z9: JuPa | AA9: 22 | AB9: 1 | AC9: 18 | AD9: 59 | AI9: 1. | AJ9: 2.
B10: 1989 | C10: 8. | D10: JuPa | E10: 7 | F10: 0 | G10: 1 | H10: 3
B11: YHTEENSÄ | E11: =SUM(E4:E10) -> 70 | F11: =SUM(F4:F10) -> 1 | G11: =SUM(G4:G10) -> 35 | H11: =SUM(H4:H10) -> 76 | I11: =SUM(I4:I10) -> 0 | J11: 0.0 % | K11: =SUM(K4:K10) -> 0 | Q11: =SUM(Q4:Q10) -> 19 | R11: =SUM(R4:R10) -> 3 | S11: =SUM(S4:S10) -> 12 | T11: =SUM(T4:T10) -> 22 | U11: =SUM(U4:U10) -> 0 | V11: 0.0 % | W11: =SUM(W4:W10) -> 0 | X11: YHTEENSÄ | AA11: =SUM(AA4:AA10) -> 40 | AB11: =SUM(AB4:AB10) -> 1 | AC11: =SUM(AC4:AC10) -> 18 | AD11: =SUM(AD4:AD10) -> 86 | AE11: =SUM(AE4:AE10) -> 0 | AF11: 0.0 % | AG11: =SUM(AG4:AG10) -> 0 | AM11: =SUM(AM4:AM10) -> 0 | AN11: =SUM(AN4:AN10) -> 0 | AO11: =SUM(AO4:AO10) -> 0 | AP11: =SUM(AP4:AP10) -> 0 | AQ11: =SUM(AQ4:AQ10) -> 0 | AR11: 0.0 % | AS11: =SUM(AS4:AS10) -> 0
B13: KAIKKI OTTELUT | E13: OTT | F13: KUN | G13: LÖI | H13: TOI | I13: KL | J13: KL-% | L13: ka/L | M13: ka/T | N13: ka/l+t | O13: ka/kl | R13: Seurat | T13: PKP = Puurtilan Kisa-Pojat (1948)
B14: SUPERPESIS | E14: 81 | F14: 6 | G14: 36 | H14: 77 | I14: 422 | J14: 63.5 % | K14: =PRODUCT(I14/J14) -> 664.5669291 | L14: =PRODUCT((F14+G14)/E14) -> 0.52 | M14: =PRODUCT(H14/E14) -> 0.95 | N14: =PRODUCT((F14+G14+H14)/E14) -> 1.47 | O14: =PRODUCT(I14/E14) -> 5.21 | T14: SiiPo = Siilinjärven Ponnistus (1907)
B15: YKKÖSPESIS | E15: =PRODUCT(E11+Q11) -> 89 | F15: =PRODUCT(F11+R11) -> 4 | G15: =PRODUCT(G11+S11) -> 47 | H15: =PRODUCT(H11+T11) -> 98 | I15: =PRODUCT(I11+U11) -> 0 | J15: 0.0 % | K15: =PRODUCT(K11+W11) -> 0 | L15: =PRODUCT((F15+G15)/E15) -> 0.57 | M15: =PRODUCT(H15/E15) -> 1.10 | N15: =PRODUCT((F15+G15+H15)/E15) -> 1.67 | O15: =PRODUCT(I15/E15) -> 0.00 | T15: JuPa = Juvan Pallo (1950)
B16: SUOMENSARJA | E16: =PRODUCT(AA11+AM11) -> 40 | F16: =PRODUCT(AB11+AN11) -> 1 | G16: =PRODUCT(AC11+AO11) -> 18 | H16: =PRODUCT(AD11+AP11) -> 86 | I16: =PRODUCT(AE11+AQ11) -> 0 | J16: 0.0 % | K16: =PRODUCT(AG11+AS11) -> 0 | L16: =PRODUCT((F16+G16)/E16) -> 0.48 | M16: =PRODUCT(H16/E16) -> 2.15 | N16: =PRODUCT((F16+G16+H16)/E16) -> 2.63 | O16: =PRODUCT(I16/E16) -> 0.00
B17: YHTEENSÄ | E17: =SUM(E14:E16) -> 210 | F17: =SUM(F14:F16) -> 11 | G17: 101 | H17: 261 | I17: 422 | J17: 0.0 % | K17: =SUM(K14:K16) -> 664.5669291 | L17: =PRODUCT((F17+G17)/E17) -> 0.53 | M17: =PRODUCT(H17/E17) -> 1.24 | N17: =PRODUCT((F17+G17+H17)/E17) -> 1.78 | O17: 5.21

Sheet Arvo-ottelut
B1: ITÄ - LÄNSI - KORTTI
B2: Hannu Manninen | C2: 13.3.1950 - xx.xx.2008
B3: A-POJAT | C3: Itä - Länsi, tulos | D3: Joukkue | E3: Seura | G3: V | H3: T | I3: H | J3: Up. | K3: Lj. | L3: Palk. | M3: O | N3: K | O3: L | P3: T | Q3: KL | R3: 1 | S3: 2 | T3: 3 | U3: k | V3: KL-% | W3: Pelinjohtaja | X3: Yleisöä
B4: 13.09. 1969 Toijala | C4: 5-4 | D4: Itä | E4: JuPa | G4: 1 | J4: s | M4: 1 | W4: Kari Lindberg | X4: 350
B6: LIITTO - LEHDISTÖ - KORTTI
B7: Hannu Manninen | C7: 13.3.1950
B8: MIEHET | C8: Tulos | D8: Joukkue | E8: Seura | G8: V | H8: T | I8: H | J8: Up. | K8: Lj. | L8: Palk. | M8: O | N8: K | O8: L | P8: T | Q8: KL | R8: 1 | S8: 2 | T8: 3 | U8: k | V8: KL-% | W8: Pelinjohtaja | X8: Yleisöä
B9: 15.06. 1984 Mikkeli | C9: 6-5 | D9: Liitto | E9: SiiPo | G9: 1 | K9: vai | M9: 1 | Q9: 0/1 | U9: 0/1 | V9: 0.0 % | W9: Aulis Väisänen | X9: 2450
B10: Ikä ensimmäisessä ottelussa | C10: 34 v 3 kk 2 pv

Sheet Pelinjohtaja
B1: PELINJOHTAJAKORTTI
B2: Hannu Manninen | D2: 13.3.1950 - xx.xx.2008
B3: MSU | C3: Runkosarja | L3: Ylempi loppusarja | P3: Alempi loppusarja | U3: Arvo-ottelut | W3: Mitalit | Z3: Huomautuksia
B4: Vuosi | C4: Seura | D4: M/N | E4: Sija | F4: O | G4: V | H4: T | I4: H | J4: Voitto-% | L4: O | M4: V | N4: H | O4: Voitto-% | P4: O | Q4: V | R4: T | S4: H | T4: Voitto-% | U4: IL | V4: LL | W4: 1 | X4: 2 | Y4: 3
B5: 1989 | C5: JuPa | D5: Miehet | E5: 8. | F5: MYP, 22 ottelua
B6: 1990 | C6: JuPa | D6: Miehet | E6: 5. | F6: MYP, 22 ottelua
B7: 1991 | C7: JuPa | D7: Miehet | E7: 2. | F7: MYP, 22 ottelua
B8: 1992 | C8: Manse PP | D8: Miehet | E8: 2. | F8: MYP, 28 ottelua | P8: 2 | Q8: 0 | R8: 0 | S8: 2 | T8: =PRODUCT(Q8/P8) -> 0.0 % | Z8: superpesiskarsinta
B9: 1993 | C9: SiiPe | D9: Miehet | E9: 14. | F9: 27 | G9: 3 | H9: 0 | I9: 24 | J9: =PRODUCT(G9/F9) -> 11.1 %
B10: 1994 | C10: JuPa | D10: Miehet | E10: 6. | F10: MYP, 14 ottelua | P10: 18 | Q10: 8 | R10: 1 | S10: 9 | T10: =PRODUCT(Q10/P10) -> 44.4 % | Z10: karsintasarja
B11: 1995 | C11: JuPa | D11: Miehet | E11: 1. | F11: MYP, 24 ottelua
B12: 1996 | C12: JuPa | D12: Miehet | E12: 9. | F12: 29 | G12: 12 | H12: 0 | I12: 17 | J12: =PRODUCT(G12/F12) -> 41.4 %
B13: 1997 | C13: JuPa | D13: Miehet | E13: 13. | F13: 21 | G13: 11 | H13: 0 | I13: 10 | J13: =PRODUCT(G13/F13) -> 52.4 % | P13: 7 | Q13: 3 | R13: 0 | S13: 4 | T13: =PRODUCT(Q13/P13) -> 42.9 % | U13: 1 | Z13: alemmat pudotuspelit, superpesiskarsinta
B14: 1998 | C14: JuPa | D14: Miehet | E14: 15. | F14: 28 | G14: 4 | H14: 0 | I14: 24 | J14: =PRODUCT(G14/F14) -> 14.3 %
B15: 2001 | C15: JuPa | D15: Miehet | E15: 13. | F15: MYP, 14 ottelua
B16: 2003 | C16: KiPa | D16: Naiset | E16: 3. | F16: NYP, 18 ottelua
B17: Yhteensä | F17: =SUM(F5:F16) -> 105 | G17: =SUM(G5:G16) -> 30 | H17: =SUM(H5:H16) -> 0 | I17: =SUM(I5:I16) -> 75 | J17: =PRODUCT(G17/F17) -> 28.6 % | L17: =SUM(L5:L16) -> 0 | M17: =SUM(M5:M16) -> 0 | N17: =SUM(N5:N16) -> 0 | O17: 0.0 % | P17: =SUM(P5:P16) -> 27 | Q17: =SUM(Q5:Q16) -> 11 | R17: =SUM(R5:R16) -> 1 | S17: =SUM(S5:S16) -> 15 | T17: =PRODUCT(Q17/P17) -> 40.7 % | U17: =SUM(U11:U16) -> 1 | V17: =SUM(V11:V16) -> 0 | W17: =SUM(W5:W16) -> 0 | X17: =SUM(X5:X16) -> 0 | Y17: =SUM(Y5:Y16) -> 0
B19: URA SUPERISSA, MIEHET | F19: O | G19: V | H19: T | I19: H | J19: Voitto-% | L19: PLAY OFF | O19: SARJAT | P19: O | Q19: V | R19: T | S19: H | T19: Voitto-% | V19: Seurat: | Y19: JuPa = Juvan Pallo (1950)
B20: Runkosarja | F20: =PRODUCT(F17) -> 105 | G20: =PRODUCT(G17) -> 30 | H20: =PRODUCT(H17) -> 0 | I20: =PRODUCT(I17) -> 75 | J20: =PRODUCT(G20/F20) -> 28.6 % | L20: Puolivälierät | Y20: Manse PP = Mansen Pesäpallo (1978)
B21: Ylempi loppusarja | L21: Välierät | Y21: SiiPe = Siilinjärven Pesis (1987)
B22: Alempi loppusarja | F22: =SUM(P17) -> 27 | G22: =SUM(Q17) -> 11 | H22: =SUM(R17) -> 1 | I22: =SUM(S17) -> 15 | J22: =PRODUCT(G22/F22) -> 40.7 % | L22: Finaalit | Y22: KiPa = Kiteen Pallo-90 (1990)
B23: KAIKKI | F23: =SUM(F20:F22) -> 132 | G23: =SUM(G20:G22) -> 41 | H23: =SUM(H20:H22) -> 1 | I23: =SUM(I20:I22) -> 90 | J23: =PRODUCT(G23/F23) -> 31.1 % | L23: KAIKKI

Sheet Kärkilyönnit
B1: KÄRKILYÖNNIT RUNKOSARJASSA | V1: VUOSITTAISET SIJOITUKSET TOP - 30
G2: 0 > 1 | J2: 1 > 2 | M2: 2 > 3 | P2: 3 > k | S2: Yhteensä
B3: Vuosi | C3: Sija | D3: Seura | E3: OTT | F3: KL | G3: YHT | H3: % | I3: KL | J3: YHT | K3: % | L3: KL | M3: YHT | N3: % | O3: KL | P3: YHT | Q3: % | R3: KL | S3: YHT | T3: % | V3: Vuosi | W3: Sija | X3: Seura | Y3: 0 > 1 | Z3: 1 > 2 | AA3: 2 > 3 | AB3: 3 > k | AC3: KL
B4: 1983 | C4: 10. | D4: SiiPo | E4: 22 | F4: 36 | G4: 50 | H4: =PRODUCT(F4/G4) -> 72.0 % | I4: 45 | J4: 66 | K4: =PRODUCT(I4/J4) -> 68.2 % | L4: 17 | M4: 32 | N4: =PRODUCT(L4/M4) -> 53.1 % | O4: 13 | P4: 25 | Q4: =PRODUCT(O4/P4) -> 52.0 % | R4: 111 | S4: =PRODUCT(G4+J4+M4+P4) -> 173 | T4: =PRODUCT(R4/S4) -> 64.2 % | V4: 1983 | W4: 10. | X4: SiiPo | Y4: 18. | Z4: 7. | AC4: 25.
B5: 1984 | C5: 8. | D5: SiiPo | E5: 21 | F5: 33 | G5: 52 | H5: =PRODUCT(F5/G5) -> 63.5 % | I5: 43 | J5: 61 | K5: =PRODUCT(I5/J5) -> 70.5 % | L5: 37 | M5: 52 | N5: =PRODUCT(L5/M5) -> 71.2 % | O5: 12 | P5: 21 | Q5: =PRODUCT(O5/P5) -> 57.1 % | R5: 125 | S5: =PRODUCT(G5+J5+M5+P5) -> 186 | T5: 67.2 % | V5: 1984 | W5: 8. | X5: SiiPo | Y5: 23. | Z5: 9. | AA5: 13. | AC5: 13.
B6: 1985 | D6: SiiPo | V6: 1985 | X6: SiiPo
B7: 1986 | C7: 3. | D7: SiiPo | E7: 22 | F7: 33 | G7: 53 | H7: =PRODUCT(F7/G7) -> 62.3 % | I7: 38 | J7: 57 | K7: =PRODUCT(I7/J7) -> 66.7 % | L7: 24 | M7: 40 | N7: =PRODUCT(L7/M7) -> 60.0 % | O7: 14 | P7: 35 | Q7: =PRODUCT(O7/P7) -> 40.0 % | R7: 109 | S7: =PRODUCT(G7+J7+M7+P7) -> 185 | T7: 58.9 % | V7: 1986 | W7: 3. | X7: SiiPo | Y7: 27. | Z7: 18. | AC7: 28.
B8: Yhteensä | E8: =SUM(E4:E7) -> 65 | F8: =SUM(F4:F7) -> 102 | G8: =SUM(G4:G7) -> 155 | H8: =PRODUCT(F8/G8) -> 65.8 % | I8: =SUM(I4:I7) -> 126 | J8: =SUM(J4:J7) -> 184 | K8: =PRODUCT(I8/J8) -> 68.5 % | L8: =SUM(L4:L7) -> 78 | M8: =SUM(M4:M7) -> 124 | N8: =PRODUCT(L8/M8) -> 62.9 % | O8: =SUM(O4:O7) -> 39 | P8: =SUM(P4:P7) -> 81 | Q8: =PRODUCT(O8/P8) -> 48.1 % | R8: =SUM(R4:R7) -> 345 | S8: =SUM(S4:S7) -> 544 | T8: =PRODUCT(R8/S8) -> 63.4 %
B10: KÄRKILYÖNNIT YLEMMISSÄ PUDOTUSPELEISSÄ | V10: VUOSITTAISET SIJOITUKSET TOP - 30
G11: 0 > 1 | J11: 1 > 2 | M11: 2 > 3 | P11: 3 > k | S11: Yhteensä
B12: Vuosi | C12: Sija | D12: Seura | E12: OTT | F12: KL | G12: YHT | H12: % | I12: KL | J12: YHT | K12: % | L12: KL | M12: YHT | N12: % | O12: KL | P12: YHT | Q12: % | R12: KL | S12: YHT | T12: % | V12: Vuosi | W12: Sija | X12: Seura | Y12: 0 > 1 | Z12: 1 > 2 | AA12: 2 > 3 | AB12: 3 > k | AC12: KL
B13: 1983 | C13: 8. | D13: SiiPo | V13: 1983 | W13: 8. | X13: SiiPo
B14: 1984 | C14: 10. | D14: SiiPo | V14: 1984 | W14: 10. | X14: SiiPo
B15: 1985 | C15: 1. | D15: SiiPo | V15: 1985 | W15: 1. | X15: SiiPo
B16: 1986 | C16: 2. | D16: SiiPo | E16: 7 | F16: 9 | G16: 14 | H16: 64.3 % | I16: 9 | J16: 12 | K16: 75.0 % | L16: 10 | M16: 12 | N16: 83.3 % | O16: 2 | P16: 9 | Q16: 22.2 % | R16: 30 | S16: 47 | T16: 63.8 % | V16: 1986 | W16: 2. | X16: SiiPo | Y16: 8. | Z16: 10. | AA16: 10. | AC16: 10.
B17: Yhteensä | E17: =SUM(E11:E16) -> 7 | F17: =SUM(F13:F16) -> 9 | G17: =SUM(G13:G16) -> 14 | H17: =PRODUCT(F17/G17) -> 64.3 % | I17: =SUM(I13:I16) -> 9 | J17: =SUM(J13:J16) -> 12 | K17: =PRODUCT(I17/J17) -> 75.0 % | L17: =SUM(L13:L16) -> 10 | M17: =SUM(M13:M16) -> 12 | N17: =PRODUCT(L17/M17) -> 83.3 % | O17: =SUM(O13:O16) -> 2 | P17: =SUM(P13:P16) -> 9 | Q17: =PRODUCT(O17/P17) -> 22.2 % | R17: =SUM(R13:R16) -> 30 | S17: =SUM(S13:S16) -> 47 | T17: =PRODUCT(R17/S17) -> 63.8 %
B19: KÄRKILYÖNNIT
G20: 0 > 1 | J20: 1 > 2 | M20: 2 > 3 | P20: 3 > k | S20: Yhteensä
E21: OTT | F21: KL | G21: YHT | H21: % | I21: KL | J21: YHT | K21: % | L21: KL | M21: YHT | N21: % | O21: KL | P21: YHT | Q21: % | R21: KL | S21: YHT | T21: %
B22: RUNKOSARJA | E22: =PRODUCT(E8) -> 65 | F22: =PRODUCT(F8) -> 102 | G22: =PRODUCT(G8) -> 155 | H22: =PRODUCT(H8) -> 65.8 % | I22: =PRODUCT(I8) -> 126 | J22: =PRODUCT(J8) -> 184 | K22: =PRODUCT(K8) -> 68.5 % | L22: =PRODUCT(L8) -> 78 | M22: =PRODUCT(M8) -> 124 | N22: =PRODUCT(N8) -> 62.9 % | O22: =PRODUCT(O8) -> 39 | P22: =PRODUCT(P8) -> 81 | Q22: =PRODUCT(Q8) -> 48.1 % | R22: =PRODUCT(R8) -> 345 | S22: =PRODUCT(S8) -> 544 | T22: =PRODUCT(T8) -> 63.4 %
B23: PLAY OFF | E23: =PRODUCT(E17) -> 7 | F23: =PRODUCT(F17) -> 9 | G23: 14 | H23: 64.3 % | I23: 9 | J23: 12 | K23: 75.0 % | L23: 10 | M23: 12 | N23: 83.3 % | O23: 2 | P23: 9 | Q23: 22.2 % | R23: 30 | S23: 47 | T23: 63.8 %
